bitfinex/quotes_ETHUSD_20250903
["timestamp","ask_amount","ask_price","bid_price","bid_amount"]
[1756915425162,2.23214285,4480.0,4479.9,0.3025]
[1756915425963,3.924,4480.1,4479.9,0.7496]
[1756915426134,6.1560967,4480.1,4479.9,0.7496]
[1756915426330,0.1112,4480.4,4480.0,0.8227]
[1756915426541,0.1112,4480.7,4480.3,0.3025]
[1756915426741,0.1112,4480.7,4480.4,0.8227]
[1756915426948,0.1112,4480.7,4480.6,0.3025]
[1756915427334,0.1112,4480.7,4480.6,0.7496]
[1756915427536,0.1112,4480.7,4480.6,1.23772]
[1756915428228,0.1112,4480.7,4480.6,0.7496]
[1756915428229,2.34299413,4480.7,4480.6,0.7496]
[1756915428426,0.1112,4480.7,4480.6,0.7496]
[1756915428628,2.34299413,4480.7,4480.6,0.7496]
[1756915429062,2.34299413,4480.7,4480.6,0.3025]
[1756915429424,0.1112,4480.7,4480.6,0.3025]
[1756915429629,0.1112,4480.7,4480.6,0.7496]
[1756915431054,0.025,4480.8,4480.6,1.1252]
[1756915431235,0.025,4480.8,4480.7,2.71991413]
[1756915431561,0.025,4480.8,4480.7,6.16701413]
[1756915431764,0.025,4480.8,4480.7,6.46951413]
[1756915432254,0.025,4480.8,4480.7,0.86212]
[1756915432742,0.025,4480.8,4480.7,3.09391413]
[1756915432939,0.025,4480.8,4480.7,0.86212]
[1756915433542,0.025,4480.8,4480.7,0.3025]
[1756915433756,0.025,4480.8,4480.2,1.716]
[1756915433966,2.6272,4480.7,4479.8,0.001]
[1756915434146,2.23219268,4479.9,4479.8,0.001]
[1756915434964,2.53369268,4479.9,4479.8,0.001]
[1756915435278,3.00559268,4479.9,4479.8,0.001]
[1756915435563,3.44489268,4479.9,4479.8,0.001]
[1756915436839,6.44489268,4479.9,4479.8,0.001]
[1756915437739,10.25689268,4479.9,4479.8,0.001]
[1756915438268,6.00559268,4479.9,4479.8,0.001]
[1756915438568,10.25689268,4479.9,4479.8,0.001]
[1756915439560,10.59951435,4479.9,4479.8,0.001]
[1756915439766,10.76778344,4479.9,4479.8,0.001]
[1756915439967,11.10722383,4479.9,4479.8,0.001]
[1756915440353,11.10722383,4479.9,4479.8,9.021e-05]
[1756915440671,10.76778344,4479.9,4479.8,9.021e-05]
[1756915440845,11.10722383,4479.9,4479.8,9.021e-05]
[1756915441048,7.40722383,4479.9,4479.8,9.021e-05]
[1756915441268,10.87978344,4479.9,4479.8,9.021e-05]
[1756915441868,10.53716177,4479.9,4479.8,9.021e-05]
[1756915442071,6.72516177,4479.9,4479.8,9.021e-05]
[1756915442377,10.87978344,4479.9,4479.8,9.021e-05]
[1756915442546,5.64569268,4479.9,4479.8,9.021e-05]
[1756915442879,10.68231435,4479.9,4479.8,9.021e-05]
[1756915443078,11.02175474,4479.9,4479.8,9.021e-05]
[1756915443264,10.68231435,4479.9,4479.8,9.021e-05]
[1756915443974,6.86931435,4479.9,4479.8,9.021e-05]
[1756915444187,10.68231435,4479.9,4479.8,9.021e-05]
[1756915444357,6.86931435,4479.9,4479.8,9.021e-05]
[1756915444562,9.80131435,4479.9,4479.8,9.021e-05]
[1756915444761,10.68231435,4479.9,4479.8,9.021e-05]
[1756915444959,10.25261435,4479.9,4479.8,9.021e-05]
[1756915445286,5.68681435,4479.9,4479.8,0.28629021]
[1756915445586,3.0,4479.9,4479.8,0.28629021]
[1756915445763,3.925,4479.9,4479.8,0.28629021]
[1756915446179,3.925,4479.9,4479.8,9.021e-05]
[1756915446472,0.112,4479.9,4479.8,0.73919021]
[1756915446697,0.4513,4481.1,4479.8,3.34703272]
[1756915446698,0.4006,4480.8,4479.8,3.34703272]
[1756915447013,0.112,4480.0,4479.9,2.68509268]
[1756915447174,0.025,4480.8,4480.3,2.23198889]
[1756915447376,0.112,4480.2,4479.9,0.4529]
[1756915447601,0.2978,4480.0,4479.8,9.021e-05]
[1756915447840,3.925,4479.9,4479.8,9.021e-05]
[1756915448307,3.925,4479.9,4479.8,0.28629021]
[1756915448475,3.925,4479.9,4479.8,0.99105626]
[1756915448681,3.813,4480.0,4479.8,1.11479021]
[1756915449024,3.813,4480.0,4479.9,0.8285]
[1756915449160,3.925,4480.2,4479.9,3.34685163]
[1756915449366,3.925,4480.2,4480.0,3.06063238]
[1756915449597,3.925,4480.2,4480.1,0.7391]
[1756915449803,3.925,4480.2,4480.1,0.2862]
[1756915450001,3.925,4480.2,4480.1,0.7391]
[1756915450362,0.025,4480.8,4480.1,1.44939717]
[1756915450363,0.1112,4480.6,4480.1,1.44939717]
[1756915450671,0.1112,4480.6,4480.2,0.4529]
[1756915451087,0.2978,4480.3,4479.8,9.021e-05]
[1756915451286,2.34419268,4479.9,4479.8,9.021e-05]
[1756915451604,6.49981435,4479.9,4479.8,9.021e-05]
[1756915451787,6.79761435,4479.9,4479.8,9.021e-05]
[1756915451985,14.26891435,4479.9,4479.8,9.021e-05]
[1756915452193,14.69861435,4479.9,4479.8,9.021e-05]
[1756915452379,14.35599268,4479.9,4479.8,9.021e-05]
[1756915452789,13.92629268,4479.9,4479.8,9.021e-05]
[1756915453203,9.36419268,4479.9,4479.8,9.021e-05]
[1756915453405,13.17719268,4479.9,4479.8,9.021e-05]
[1756915453707,13.92629268,4479.9,4479.8,9.021e-05]
[1756915453904,14.35599268,4479.9,4479.8,9.021e-05]
[1756915454482,13.17719268,4479.9,4479.8,9.021e-05]
[1756915455110,9.36419268,4479.9,4479.8,0.28629021]
[1756915455317,13.17719268,4479.9,4479.8,0.28629021]
[1756915455515,13.17719268,4479.9,4479.8,9.021e-05]
[1756915455748,13.92629268,4479.9,4479.8,9.021e-05]
[1756915456787,9.36419268,4479.9,4479.8,0.28629021]
[1756915457000,13.17719268,4479.9,4479.8,0.28629021]
[1756915457226,7.132,4479.9,4479.8,0.28629021]
[1756915457397,0.1112,4480.5,4479.9,2.23217643]
[1756915457587,0.1112,4480.5,4480.4,0.2862]
[1756915458000,3.816,4480.7,4480.4,1.1147]
[1756915458234,0.025,4480.8,4480.7,2.23179413]
[1756915458541,0.025,4480.8,4480.5,0.9397]
[1756915458737,0.025,4480.8,4479.8,9.021e-05]
[1756915458738,2.23179456,4480.7,4479.9,2.68507288]
[1756915458941,4.63492167,4480.8,4479.8,9.021e-05]
[1756915459178,0.112,4480.2,4479.8,9.021e-05]
[1756915459490,0.112,4480.2,4480.1,0.2862]
[1756915460199,0.112,4480.2,4479.8,9.021e-05]
[1756915460520,2.34404498,4480.2,4479.8,9.021e-05]
[1756915460689,0.112,4480.2,4479.8,9.021e-05]
[1756915460888,0.112,4480.2,4480.1,0.2862]
[1756915462592,0.112,4480.2,4479.8,0.45299021]
[1756915462593,0.4098,4480.2,4479.8,9.021e-05]
[1756915462794,0.881,4480.1,4479.8,9.021e-05]
[1756915462996,2.34419268,4479.9,4479.8,9.021e-05]
[1756915463196,6.45599268,4479.9,4479.8,9.021e-05]
[1756915463396,6.90729268,4479.9,4479.8,9.021e-05]
[1756915464098,6.90729268,4479.9,4479.8,0.28629021]
[1756915464099,3.926,4479.9,4479.8,0.28629021]
[1756915464708,0.112,4479.9,4479.8,0.28629021]
[1756915464928,0.112,4480.0,4479.8,0.73919021]
[1756915465897,0.112,4480.0,4479.8,0.28629021]
[1756915466111,0.112,4480.0,4479.9,0.4529]
[1756915466506,0.112,4480.0,4479.9,0.7391]
[1756915466708,0.112,4480.0,4479.8,9.021e-05]
[1756915467230,6.04490716,4480.5,4479.9,0.2862]
[1756915467398,5.25674575,4480.8,4479.9,0.2862]
[1756915467399,0.025,4480.8,4479.9,0.9909568]
[1756915467600,3.838,4480.8,4480.2,2.23203507]
[1756915467800,3.838,4480.8,4480.7,0.2862]
[1756915468305,3.9492,4480.8,4480.7,0.2862]
[1756915468901,6.18094433,4480.8,4480.7,0.2862]
[1756915469116,3.9492,4480.8,4480.1,2.34405386]
[1756915469410,3.9492,4480.8,4480.7,0.2862]
[1756915469930,3.9492,4480.8,4480.1,2.34409012]
[1756915469931,2.23196428,4480.4,4480.1,0.112]
[1756915470237,0.112,4480.2,4479.8,9.021e-05]
[1756915470403,2.23209303,4480.1,4479.8,9.021e-05]
[1756915470603,2.2321663,4480.0,4479.8,9.021e-05]
[1756915471103,6.04409838,4480.1,4479.8,9.021e-05]
[1756915471430,3.812,4480.1,4479.8,9.021e-05]
[1756915472046,3.812,4480.1,4480.0,0.3105]
[1756915472225,3.924,4480.2,4480.0,0.3105]
[1756915472426,0.112,4480.2,4480.1,0.4339]
[1756915472598,0.112,4480.2,4480.1,0.7444]
[1756915472798,0.112,4480.2,4480.1,0.3105]
[1756915473037,3.812,4480.4,4480.1,0.3105]
[1756915473204,0.112,4480.2,4479.8,9.021e-05]
[1756915474106,0.112,4480.2,4480.1,0.3105]
[1756915475445,3.812,4480.4,4480.1,0.7444]
[1756915475734,6.15505136,4480.6,4480.1,0.7444]
[1756915475940,6.15505136,4480.6,4480.1,0.3105]
[1756915476242,2.23190252,4480.5,4480.1,0.3105]
[1756915476821,6.15505927,4480.6,4480.1,0.3105]
[1756915477252,2.23189512,4480.5,4480.1,0.3105]
[1756915477567,2.2319475,4480.4,4480.1,0.3105]
[1756915477725,4.3913,4480.6,4480.0,0.112]
[1756915477922,2.5201962,4480.1,4479.8,9.021e-05]
[1756915478352,4.2801,4480.0,4479.8,9.021e-05]
[1756915478552,2.34419268,4479.9,4479.8,9.021e-05]
[1756915478759,10.12039268,4479.9,4479.8,9.021e-05]
[1756915478924,10.57259268,4479.9,4479.8,9.021e-05]
[1756915485851,13.91521435,4479.9,4479.8,9.021e-05]
[1756915486049,14.25465474,4479.9,4479.8,9.021e-05]
[1756915486453,13.91521435,4479.9,4479.8,9.021e-05]
[1756915486641,14.70721435,4479.9,4479.8,9.021e-05]
[1756915486846,3.0,4479.6,4479.3,0.001]
[1756915487042,5.34444184,4479.4,4479.3,0.001]
[1756915487231,12.65254184,4479.4,4479.3,0.001]
[1756915487438,13.91546351,4479.4,4479.3,0.001]
[1756915488334,14.2549039,4479.4,4479.3,0.001]
[1756915492667,18.0679039,4479.4,4479.3,0.001]
[1756915492838,11.8399039,4479.4,4479.3,0.001]
[1756915493237,11.0479039,4479.4,4479.3,0.001]
[1756915493948,11.8399039,4479.4,4479.3,0.001]
[1756915496161,7.2349039,4479.4,4479.3,0.001]
[1756915496341,11.8399039,4479.4,4479.3,0.001]
[1756915496978,7.5747039,4479.4,4479.3,0.001]
[1756915497166,11.50046351,4479.4,4479.3,0.001]
[1756915497561,11.49901953,4479.4,4479.3,0.001]
[1756915498246,11.83845992,4479.4,4479.3,0.001]
[1756915498444,2.23318966,4477.9,4477.3,0.8095]
[1756915498646,6.15818966,4477.9,4477.3,0.4339]
[1756915498972,6.15818966,4477.9,4477.8,0.3355]
[1756915499790,6.15818966,4477.9,4477.8,0.025]
[1756915500083,6.15818966,4477.9,4477.8,0.7638]
[1756915500282,0.112,4477.9,4477.8,1.1394]
[1756915500865,3.925,4477.9,4477.8,1.1394]
[1756915501064,0.112,4477.9,4477.8,1.25334]
[1756915501280,1.717,4479.5,4477.8,1.36534]
[1756915501595,0.112,4478.7,4478.1,2.2330509]
[1756915501762,0.112,4478.7,4478.6,0.2852]
[1756915501966,6.15779076,4478.7,4478.6,0.2852]
[1756915502369,6.15779076,4478.7,4478.6,0.7388]
[1756915503049,0.112,4478.7,4478.6,1.1144]
[1756915503208,3.925,4478.7,4478.6,1.1144]
[1756915504186,3.925,4478.7,4478.6,0.7388]
[1756915504367,0.112,4478.7,4478.6,0.7388]
[1756915504565,0.112,4478.7,4478.6,1.1144]
[1756915504766,3.925,4479.2,4478.6,3.34723941]
[1756915504971,0.112,4479.2,4478.7,1.39841775]
[1756915505170,0.112,4479.2,4479.1,0.2852]
[1756915505604,3.813,4479.3,4479.1,1.1144]
[1756915505908,3.813,4479.3,4479.2,0.3756]
[1756915506060,3.925,4479.5,4479.2,1.00670903]
[1756915506259,3.925,4479.5,4479.2,0.2852]
[1756915506472,0.112,4479.5,4479.3,0.4536]
[1756915506694,0.112,4479.5,4479.4,1.1144]
[1756915507187,0.112,4479.5,4479.4,0.7388]
[1756915508972,3.924,4479.5,4479.4,0.7388]
[1756915509495,0.112,4479.5,4479.4,0.7388]
[1756915509697,0.112,4479.5,4479.4,1.1144]
[1756915509894,0.112,4479.5,4479.4,4.13884184]
[1756915510066,0.112,4479.5,4479.4,4.77597877]
[1756915510570,0.027,4479.8,4479.7,2.23229234]
[1756915510990,0.027,4479.8,4479.7,3.45869234]
[1756915513293,0.027,4479.8,4479.7,3.08309234]
[1756915513790,0.027,4479.8,4479.7,3.45869234]
[1756915514001,0.027,4479.8,4479.7,4.17071153]
[1756915517683,0.027,4479.8,4479.7,3.79511153]
[1756915518093,0.027,4479.8,4479.7,0.8508]
[1756915518289,0.3175,4479.8,4479.3,0.001]
[1756915518520,0.027,4479.8,4479.7,0.2852]
[1756915518817,0.027,4479.8,4479.7,2.97109234]
[1756915519676,0.027,4479.8,4479.7,3.87477236]
[1756915519896,0.027,4479.8,4479.7,4.25037236]
[1756915520091,0.027,4479.8,4479.7,6.87477236]
[1756915520311,0.027,4479.8,4479.7,3.87477236]
[1756915520480,0.027,4479.8,4479.7,7.68577236]
[1756915521089,0.027,4479.8,4479.7,7.23217236]
[1756915521392,0.027,4479.8,4479.7,3.87477236]
[1756915522899,0.027,4479.8,4479.7,1.18888002]
[1756915523103,0.3175,4479.8,4479.3,4.604]
[1756915523315,0.027,4479.8,4479.7,0.2852]
[1756915523516,0.027,4479.8,4479.7,2.51749234]
[1756915524526,0.027,4479.8,4479.7,0.2852]
[1756915524837,0.7702,4479.8,4479.3,0.001]
[1756915524991,0.7702,4479.8,4479.4,2.2324248]
[1756915524992,0.4527,4479.7,4479.4,2.2324248]
[1756915525412,0.4527,4479.7,4479.3,0.001]
[1756915525705,0.4527,4479.7,4479.3,2.23348274]
[1756915526025,0.4588,4479.8,4479.3,0.001]
[1756915526026,2.52294184,4479.4,4479.3,0.001]
[1756915526521,0.7432,4479.4,4479.3,0.001]
[1756915526724,2.97564184,4479.4,4479.3,0.001]
[1756915526939,1.175,4479.4,4479.3,0.001]
[1756915527432,0.027,4479.8,4479.3,0.2862]
[1756915528098,0.027,4479.8,4479.4,2.68603124]
[1756915528299,0.027,4479.8,4479.4,0.97407661]
[1756915528507,0.027,4479.8,4479.7,0.2852]
[1756915529102,0.027,4479.8,4479.5,0.112]
[1756915529925,0.027,4479.8,4479.7,0.2936]
[1756915530524,0.027,4479.8,4479.5,0.112]
[1756915531101,0.5259,4479.8,4479.5,0.112]
[1756915531440,0.2992,4479.6,4479.5,0.112]
[1756915531737,0.027,4479.8,4479.5,0.112]
[1756915532117,0.2992,4479.6,4479.3,0.001]
[1756915532632,0.9642,4479.5,4479.3,0.001]
[1756915533123,1.2634,4479.4,4479.3,0.001]
[1756915533332,9.21362457,4479.4,4479.3,0.001]
[1756915533498,3.60784184,4479.4,4479.3,0.001]
[1756915533694,9.32562457,4479.4,4479.3,0.001]
[1756915536538,0.112,4479.4,4479.3,0.001]
[1756915537093,2.64364184,4479.4,4479.3,0.001]
[1756915537399,3.60784184,4479.4,4479.3,0.001]
[1756915537895,0.112,4479.4,4479.3,0.2946]
[1756915538323,0.112,4479.7,4479.3,0.7304]
[1756915538522,2.34429651,4479.7,4479.3,0.2946]
[1756915538732,0.112,4479.7,4479.3,0.2946]
[1756915538907,2.73124217,4479.6,4479.3,0.001]
[1756915539328,2.23241446,4479.5,4479.3,0.001]
[1756915539543,0.2992,4479.4,4479.3,0.001]
[1756915539741,0.4989,4479.5,4479.3,0.001]
[1756915539938,6.18308273,4479.6,4479.3,0.001]
[1756915539939,5.71778273,4479.6,4479.3,0.001]
[1756915540240,0.2992,4479.4,4479.3,0.001]
[1756915540443,0.7981,4479.4,4479.3,0.001]
[1756915540851,7.97703218,4479.8,4479.3,0.2946]
[1756915541148,0.4112,4479.4,4479.3,0.001]
[1756915541320,0.112,4479.4,4479.3,0.001]
[1756915541847,0.112,4479.4,4479.3,0.2946]
[1756915542048,0.027,4479.8,4479.3,0.2946]
[1756915542049,0.112,4479.6,4479.3,0.2946]
[1756915542568,0.027,4479.8,4479.5,0.112]
[1756915542720,0.027,4479.8,4479.7,2.23229234]
[1756915543058,0.027,4479.8,4479.7,2.96169234]
[1756915544755,0.027,4479.8,4479.7,0.7294]
[1756915544930,0.027,4479.8,4479.7,0.2936]
[1756915545515,0.027,4479.8,4479.7,2.52589234]
[1756915545852,0.027,4479.8,4479.7,3.82971999]
[1756915546814,0.027,4479.8,4479.7,7.63971999]
[1756915550643,0.027,4479.8,4479.7,1.16162765]
[1756915550844,0.3262,4479.8,4479.7,3.809]
[1756915551058,0.8251,4479.8,4479.7,3.809]
[1756915552149,0.027,4479.8,4479.7,3.809]
[1756915552872,0.027,4479.8,4479.5,0.112]
[1756915553075,0.027,4479.8,4479.6,3.809]
[1756915553288,0.2992,4479.7,4479.5,0.112]
[1756915553488,0.4989,4479.6,4479.5,3.809]
[1756915553703,0.7981,4479.6,4479.5,3.809]
[1756915554881,0.7981,4479.6,4479.3,0.001]
[1756915555079,0.7981,4479.6,4479.4,3.809]
[1756915555445,0.7981,4479.6,4479.3,0.001]
[1756915555655,0.7981,4479.6,4479.4,3.809]
[1756915555859,0.2992,4479.6,4479.4,3.809]
[1756915556358,2.23244184,4479.4,4479.3,0.001]
[1756915556558,2.34444184,4479.4,4479.3,0.001]
[1756915556888,3.60784184,4479.4,4479.3,0.001]
[1756915558476,7.41684184,4479.4,4479.3,0.001]
[1756915565608,7.40854184,4479.4,4479.3,0.001]
[1756915570395,12.16942457,4479.4,4479.3,0.001]
[1756915570794,13.11312457,4479.4,4479.3,0.001]
[1756915571477,14.25998441,4479.4,4479.3,0.001]
[1756915571686,18.87198739,4479.4,4479.3,0.001]
[1756915572798,18.532547,4479.4,4479.3,0.001]
[1756915573677,12.99498441,4479.4,4479.3,0.001]
[1756915573915,6.13034184,4479.4,4479.3,0.001]
[1756915574100,5.64364184,4479.4,4479.3,0.001]
[1756915574432,9.45164184,4479.4,4479.3,0.001]
[1756915575288,2.34444184,4479.4,4479.3,0.001]
[1756915575502,6.15244184,4479.4,4479.3,0.001]
[1756915576018,6.94744184,4479.4,4479.3,0.001]
[1756915576710,7.40444184,4479.4,4479.3,0.001]
[1756915577119,10.40444184,4479.4,4479.3,0.001]
[1756915577406,11.06014704,4479.4,4479.3,0.001]
[1756915577822,11.85214704,4479.4,4479.3,0.001]
[1756915580448,12.01748425,4479.4,4479.3,0.001]
[1756915580773,12.01748425,4479.4,4478.3,0.001]
[1756915580774,9.88933363,4478.9,4478.3,0.001]
[1756915580911,3.0,4478.7,4478.3,0.001]
[1756915581111,13.3098829,4478.4,4478.3,0.001]
[1756915581345,17.43414771,4478.4,4478.3,0.001]
[1756915581553,17.7735881,4478.4,4478.3,0.001]
[1756915581759,18.7172881,4478.4,4478.3,0.001]
[1756915584733,2.23368848,4476.9,4476.8,0.025]
[1756915585125,9.15368848,4476.9,4476.8,0.799]
[1756915585321,9.15368848,4476.9,4476.8,0.3287]
[1756915585522,9.15368848,4476.9,4476.8,0.799]
[1756915585845,9.15368848,4476.9,4476.8,0.3287]
[1756915586814,2.34568848,4476.9,4476.8,0.799]
[1756915587013,6.15368848,4476.9,4476.8,0.799]
[1756915587423,6.15368848,4476.9,4476.8,1.1746]
[1756915587629,6.15368848,4476.9,4476.8,0.799]
[1756915588047,3.92,4476.9,4476.8,0.799]
[1756915588251,9.15368848,4476.9,4476.8,0.025]
[1756915588451,9.94868848,4476.9,4476.8,0.025]
[1756915590245,10.37888848,4476.9,4476.8,0.025]
[1756915590567,2.23378828,4476.7,4475.8,0.025]
[1756915590794,2.34618753,4475.9,4475.8,0.025]
[1756915590948,6.15418753,4475.9,4475.8,0.025]
[1756915591286,9.15418753,4475.9,4475.8,0.025]
[1756915591983,9.15418753,4475.9,4475.8,0.3229]
[1756915593599,0.112,4475.9,4475.8,1.1485]
[1756915593781,0.112,4475.9,4475.8,1.26335]
[1756915593987,0.112,4475.9,4475.8,1.1485]
[1756915594298,0.112,4475.9,4475.8,0.7729]
[1756915594515,2.23389123,4476.5,4475.8,1.1485]
[1756915594791,0.112,4476.1,4475.9,0.8256]
[1756915594974,0.112,4476.1,4476.0,0.2979]
[1756915595173,0.112,4476.1,4476.0,0.7479]
[1756915595174,2.34608771,4476.1,4476.0,0.7479]
[1756915595374,2.23408771,4476.1,4476.0,0.7479]
[1756915595588,3.808,4476.2,4476.0,0.7479]
[1756915595786,0.112,4476.3,4476.0,0.7479]
[1756915595984,3.808,4476.2,4476.1,0.45]
[1756915596185,0.112,4476.3,4476.1,0.7479]
[1756915596391,0.112,4476.3,4476.2,0.3756]
[1756915596694,0.112,4476.3,4476.2,0.8256]
[1756915596876,3.92,4476.6,4476.2,1.1235]
[1756915597071,3.92,4476.6,4476.3,0.8256]
[1756915597278,3.92,4476.6,4476.5,0.2979]
[1756915597479,3.92,4476.6,4476.5,0.7479]
[1756915598399,0.112,4476.6,4476.5,1.1235]
[1756915598706,0.112,4476.9,4476.5,1.45924357]
[1756915599004,0.112,4476.9,4476.6,0.8256]
[1756915599172,0.025,4477.8,4477.2,2.23352864]
[1756915599499,0.025,4477.8,4477.7,0.2979]
[1756915599875,0.025,4477.8,4477.7,3.35678941]
[1756915600082,0.025,4477.8,4477.7,3.91580645]
[1756915600481,0.025,4477.8,4477.7,3.93813934]
[1756915600881,0.025,4477.8,4477.7,3.91580645]
[1756915602197,0.025,4477.8,4477.7,2.98118941]
[1756915602772,0.025,4477.8,4477.7,2.53118941]
[1756915602995,0.025,4477.8,4477.7,2.98118941]
[1756915603397,0.025,4477.8,4477.7,0.7479]
[1756915604112,0.025,4477.8,4477.7,2.98118941]
[1756915604312,0.025,4477.8,4477.7,3.27930835]
[1756915604479,0.025,4477.8,4477.7,1.04601894]
[1756915604679,0.025,4477.8,4477.7,0.2979]
[1756915605080,0.025,4477.8,4477.4,2.23342112]
[1756915605306,0.025,4477.8,4477.3,2.168]
[1756915605607,0.025,4477.8,4477.3,1.718]
[1756915605806,0.305,4477.4,4476.6,1.718]
[1756915605998,0.305,4477.4,4476.6,0.484]
[1756915606199,0.305,4477.4,4476.6,2.71783179]
[1756915606510,3.13569544,4477.7,4476.6,0.484]
[1756915606712,2.23333928,4477.6,4476.7,2.23377062]
[1756915607017,2.23341971,4477.5,4476.8,0.45]
[1756915607518,2.2582777,4477.8,4477.4,0.2979]
[1756915607811,2.23333928,4477.6,4476.7,2.68378828]
[1756915607988,0.025,4477.8,4477.5,0.2979]
[1756915608372,2.23333928,4477.6,4477.5,0.2979]
[1756915608578,2.23333928,4477.6,4476.8,0.45]
[1756915608778,2.23338985,4477.5,4476.8,0.45]
[1756915608996,0.112,4477.3,4476.8,0.45]
[1756915609203,0.112,4477.3,4476.8,2.68373473]
[1756915609379,0.112,4477.3,4476.8,0.45]
[1756915609587,0.5842,4477.3,4476.7,0.92086358]
[1756915609787,0.5842,4477.3,4476.6,0.112]
[1756915609788,0.5422,4477.3,4476.6,0.112]
[1756915610186,0.112,4477.3,4476.6,0.112]
[1756915610908,2.34553555,4477.3,4476.6,0.112]
[1756915611212,2.23354262,4477.2,4476.6,0.112]
[1756915613337,0.112,4477.3,4477.1,0.2979]
[1756915613501,2.23354424,4477.2,4476.7,0.45]
[1756915613931,2.3454933,4477.3,4477.1,0.2979]
[1756915614523,0.112,4477.3,4477.1,0.2979]
[1756915614689,0.112,4477.6,4477.2,0.45]
[1756915614890,0.112,4477.6,4477.0,0.112]
[1756915614891,0.112,4477.6,4477.5,0.2979]
[1756915615123,0.112,4477.6,4477.0,0.112]
[1756915615296,0.417,4477.6,4477.0,0.112]
[1756915615691,0.112,4477.6,4477.5,0.2979]
[1756915616927,2.34533928,4477.6,4477.5,0.2979]
[1756915618328,0.112,4477.6,4477.5,0.2979]
[1756915618621,2.34533928,4477.6,4477.5,0.2979]
[1756915618829,2.65033928,4477.6,4477.0,0.562]
[1756915619024,2.23339903,4477.5,4477.0,0.112]
[1756915619224,0.4722,4477.5,4477.0,0.112]
[1756915619424,0.9024,4477.4,4477.0,0.112]
[1756915619628,2.23352505,4477.3,4476.8,0.001]
[1756915619834,2.34552505,4477.3,4476.8,0.001]
[1756915620001,0.112,4477.3,4476.8,0.4755]
[1756915620195,0.112,4477.3,4477.2,0.2964]
[1756915620434,0.027,4477.8,4477.2,1.1465]
[1756915620731,0.027,4477.8,4477.5,0.112]
[1756915621230,0.027,4477.8,4477.7,2.52968941]
[1756915621432,0.027,4477.8,4477.7,3.37978941]
[1756915621737,0.027,4477.8,4477.7,3.00418941]
[1756915622034,0.027,4477.8,4477.7,7.74430487]
[1756915626513,1e-08,4477.8,4477.7,7.74430487]
[1756915626722,1e-08,4477.8,4477.7,7.85630487]
[1756915628431,1e-08,4477.8,4477.7,11.66130487]
[1756915629003,1e-08,4477.8,4477.7,7.38180487]
[1756915629203,1e-08,4477.8,4477.7,11.28570487]
[1756915629637,1e-08,4477.8,4477.7,11.66130487]
[1756915630407,1e-08,4477.8,4477.7,7.85630487]
[1756915630750,1e-08,4477.8,4477.7,7.81120487]
[1756915630907,1e-08,4477.8,4477.7,7.00620487]
[1756915631112,1e-08,4477.8,4477.7,10.81120487]
[1756915631936,1e-08,4477.8,4477.7,3.21420487]
[1756915632127,1e-08,4477.8,4477.7,7.01820487]
[1756915632322,1e-08,4477.8,4477.7,10.01820487]
[1756915632529,1e-08,4477.8,4477.7,6.21420487]
[1756915632730,1e-08,4477.8,4477.7,10.81020487]
[1756915633440,1e-08,4477.8,4477.7,11.28470487]
[1756915634440,1e-08,4477.8,4477.7,10.81020487]
[1756915636829,1e-08,4477.8,4477.7,11.28470487]
[1756915637227,1e-08,4477.8,4477.7,11.66030487]
[1756915637614,1e-08,4477.8,4477.7,7.85630487]
[1756915637814,1e-08,4477.8,4477.7,11.66030487]
[1756915638367,1e-08,4477.8,4477.7,11.74981165]
[1756915638840,1e-08,4477.8,4477.7,7.94581165]
[1756915639020,1e-08,4477.8,4477.7,11.74981165]
[1756915640451,1e-08,4477.8,4477.7,7.85630487]
[1756915640752,1e-08,4477.8,4477.7,7.48070487]
[1756915640946,1e-08,4477.8,4477.7,7.00620487]
[1756915641153,1e-08,4477.8,4477.7,6.70980487]
[1756915641354,1e-08,4477.8,4477.7,10.51280487]
[1756915641549,1e-08,4477.8,4477.7,10.80920487]
[1756915641955,1e-08,4477.8,4477.7,7.00620487]
[1756915642166,1e-08,4477.8,4477.7,10.80920487]
[1756915642327,1e-08,4477.8,4477.7,11.28370487]
[1756915644959,1e-08,4477.8,4477.7,11.65930487]
[1756915645454,1e-08,4477.8,4477.7,11.28370487]
[1756915646321,1e-08,4477.8,4477.7,26.67129454]
[1756915646758,1e-08,4477.8,4477.7,26.29569454]
[1756915647067,1e-08,4477.8,4477.7,7.00620487]
[1756915647239,1.26170001,4477.8,4477.7,6.14828941]
[1756915647434,1e-08,4477.8,4477.7,6.94028941]
[1756915647635,1e-08,4477.8,4477.7,10.23668941]
[1756915648042,0.31290001,4477.8,4477.7,9.94028941]
[1756915648241,0.31290001,4477.8,4477.7,6.13728941]
[1756915648465,0.31290001,4477.8,4477.7,10.7773565]
[1756915648664,1e-08,4477.8,4477.7,10.7773565]
[1756915649376,0.80960001,4477.8,4477.7,10.7763565]
[1756915649573,1e-08,4477.8,4477.7,11.0727565]
[1756915649734,1e-08,4477.8,4477.7,10.7763565]
[1756915650245,1e-08,4477.8,4477.7,11.0873565]
[1756915650764,1e-08,4477.8,4477.7,6.9743565]
[1756915651078,0.29360001,4477.8,4477.7,10.7763565]
[1756915651444,1e-08,4477.8,4477.7,10.7763565]
[1756915651639,0.77580001,4477.8,4477.7,6.9743565]
[1756915651877,1e-08,4477.8,4477.7,10.7763565]
[1756915652041,1e-08,4477.8,4477.7,11.0873565]
[1756915652560,1e-08,4477.8,4477.7,10.7763565]
[1756915653029,0.29360001,4477.8,4477.7,10.7763565]
[1756915653232,1.24810001,4477.8,4477.2,2.23353881]